[Event "*** SCC Grand Prix: Titled Tuesday Blitz"]
[Site "Chess.com"]
[Date "2020.06.23"]
[Round "1"]
[White "crazy_but_lazy"]
[Black "Munkhzul_Turmunkh"]
[Result "1/2-1/2"]
[WhiteElo "2316"]
[BlackElo "2618"]
[TimeControl "180+1"]
[EndTime "10:05:22 PDT"]
[Termination "Game drawn by repetition"]

1. d4 {[%clk 0:02:55.7]} 1... Nf6 {[%clk 0:02:59.4]} 2. c4 {[%clk 0:02:52.7]}
2... e6 {[%clk 0:02:59.6]} 3. Nf3 {[%clk 0:02:50.1]} 3... d5 {[%clk 0:02:59.7]}
4. g3 {[%clk 0:02:49.2]} 4... Be7 {[%clk 0:02:59.7]} 5. Bg2 {[%clk 0:02:48.8]}
5... O-O {[%clk 0:03:00.2]} 6. O-O {[%clk 0:02:45]} 6... dxc4 {[%clk 0:03:00.5]}
7. Ne5 {[%clk 0:02:44.5]} 7... Nc6 {[%clk 0:03:00.1]} 8. Bxc6 {[%clk 0:02:44.8]}
8... bxc6 {[%clk 0:03:01]} 9. Nxc6 {[%clk 0:02:45.4]} 9... Qe8 {[%clk
0:03:01.6]} 10. Nxe7+ {[%clk 0:02:45.4]} 10... Qxe7 {[%clk 0:03:02.5]} 11. Qc2
{[%clk 0:02:42]} 11... e5 {[%clk 0:02:54.8]} 12. Rd1 {[%clk 0:02:25.2]} 12...
exd4 {[%clk 0:02:37.2]} 13. Rxd4 {[%clk 0:02:26.1]} 13... Bg4 {[%clk 0:02:30.9]}
14. Bg5 {[%clk 0:02:08.4]} 14... Qxe2 {[%clk 0:02:25.9]} 15. Qxe2 {[%clk
0:01:53.6]} 15... Bxe2 {[%clk 0:02:26.8]} 16. Bxf6 {[%clk 0:01:53.5]} 16... gxf6
{[%clk 0:02:27.7]} 17. Na3 {[%clk 0:01:52.1]} 17... Rad8 {[%clk 0:02:25.5]} 18.
Re4 {[%clk 0:01:44.5]} 18... Rfe8 {[%clk 0:02:10.4]} 19. Rxe8+ {[%clk
0:01:36.5]} 19... Rxe8 {[%clk 0:02:11.3]} 20. Re1 {[%clk 0:01:31.3]} 20... Kf8
{[%clk 0:02:10.8]} 21. f4 {[%clk 0:01:27.3]} 21... Bd3 {[%clk 0:01:49.2]} 22.
Rxe8+ {[%clk 0:01:20.3]} 22... Kxe8 {[%clk 0:01:50.1]} 23. Kf2 {[%clk 0:01:21]}
23... Ke7 {[%clk 0:01:50.3]} 24. Ke3 {[%clk 0:01:21.4]} 24... c5 {[%clk
0:01:50.5]} 25. Nb5 {[%clk 0:01:20]} 25... a5 {[%clk 0:01:47.5]} 26. Nc7 {[%clk
0:01:10.4]} 26... Kd7 {[%clk 0:01:38]} 27. Nd5 {[%clk 0:01:05.5]} 27... Ke6
{[%clk 0:01:37.7]} 28. Nc7+ {[%clk 0:01:04.5]} 28... Kd6 {[%clk 0:01:26.5]} 29.
Ne8+ {[%clk 0:01:03.8]} 29... Ke7 {[%clk 0:01:26]} 30. Nc7 {[%clk 0:01:04.1]}
30... Kd7 {[%clk 0:01:21.1]} 31. Nd5 {[%clk 0:01:03.6]} 31... Ke6 {[%clk
0:01:21.3]} 32. Nc7+ {[%clk 0:01:04]} 32... Kd6 {[%clk 0:01:09.3]} 33. Ne8+
{[%clk 0:00:58]} 33... Ke7 {[%clk 0:01:08.1]} 34. Nc7 {[%clk 0:00:58.1]} 1/2-1/2

[Event "*** SCC Grand Prix: Titled Tuesday Blitz"]
[Site "Chess.com"]
[Date "2020.06.23"]
[Round "1"]
[White "r31415"]
[Black "David_Paravyan"]
[Result "0-1"]
[WhiteElo "2456"]
[BlackElo "2925"]
[TimeControl "180+1"]
[EndTime "10:05:23 PDT"]
[Termination "David_Paravyan won by resignation"]

1. e4 {[%clk 0:03:00.9]} 1... c5 {[%clk 0:02:51.8]} 2. Nf3 {[%clk 0:02:59.9]}
2... Nc6 {[%clk 0:02:51.8]} 3. d4 {[%clk 0:02:58.2]} 3... cxd4 {[%clk
0:02:52.7]} 4. Nxd4 {[%clk 0:02:58.5]} 4... g6 {[%clk 0:02:53.1]} 5. Nc3 {[%clk
0:02:57.1]} 5... Bg7 {[%clk 0:02:53]} 6. Be3 {[%clk 0:02:57.4]} 6... Nf6 {[%clk
0:02:53.6]} 7. h3 {[%clk 0:02:50.7]} 7... O-O {[%clk 0:02:52.3]} 8. Nde2 {[%clk
0:02:50.6]} 8... b5 {[%clk 0:02:50.6]} 9. a3 {[%clk 0:02:47.9]} 9... Bb7 {[%clk
0:02:45.6]} 10. g4 {[%clk 0:02:46.7]} 10... Ne5 {[%clk 0:02:37.3]} 11. Bg2
{[%clk 0:02:45.3]} 11... Nc4 {[%clk 0:02:38]} 12. Bc1 {[%clk 0:02:45.2]} 12...
Qa5 {[%clk 0:02:10.3]} 13. O-O {[%clk 0:02:15.5]} 13... b4 {[%clk 0:02:10.3]}
14. Qd4 {[%clk 0:01:44]} 14... Rfc8 {[%clk 0:01:59.6]} 15. b3 {[%clk 0:01:10.5]}
15... Nxe4 {[%clk 0:01:44.7]} 16. Qxd7 {[%clk 0:00:54.6]} 16... Nxc3 {[%clk
0:01:37.5]} 17. Bxb7 {[%clk 0:00:39.6]} 17... Nxe2+ {[%clk 0:01:37.3]} 18. Kg2
{[%clk 0:00:38.5]} 18... Nb6 {[%clk 0:01:37.8]} 19. Qxe7 {[%clk 0:00:29.5]}
19... Re8 {[%clk 0:01:35.9]} 20. Qxb4 {[%clk 0:00:17.8]} 20... Qxb4 {[%clk
0:01:35.4]} 21. axb4 {[%clk 0:00:18.7]} 21... Bxa1 {[%clk 0:01:31.2]} 22. Bxa8
{[%clk 0:00:19.6]} 22... Nxa8 {[%clk 0:01:25.1]} 23. Be3 {[%clk 0:00:20.5]}
23... Bd4 {[%clk 0:01:21.3]} 0-1

[Event "*** SCC Grand Prix: Titled Tuesday Blitz"]
[Site "Chess.com"]
[Date "2020.06.23"]
[Round "1"]
[White "Harsha_Bharathakoti"]
[Black "alenee"]
[Result "1-0"]
[WhiteElo "2805"]
[BlackElo "2408"]
[TimeControl "180+1"]
[EndTime "10:05:26 PDT"]
[Termination "Harsha_Bharathakoti won on time"]

1. d4 {[%clk 0:02:55.1]} 1... c5 {[%clk 0:02:59.4]} 2. d5 {[%clk 0:02:43.6]}
2... Nf6 {[%clk 0:02:59.2]} 3. Nc3 {[%clk 0:02:43.6]} 3... g6 {[%clk 0:02:58.4]}
4. e4 {[%clk 0:02:43.8]} 4... d6 {[%clk 0:02:59.1]} 5. Bb5+ {[%clk 0:02:44.2]}
5... Bd7 {[%clk 0:02:58]} 6. a4 {[%clk 0:02:44.9]} 6... Bg7 {[%clk 0:02:57.6]}
7. Nf3 {[%clk 0:02:45.4]} 7... O-O {[%clk 0:02:57.5]} 8. Nd2 {[%clk 0:02:35.4]}
8... e6 {[%clk 0:02:53.4]} 9. O-O {[%clk 0:02:35.5]} 9... exd5 {[%clk
0:02:52.5]} 10. exd5 {[%clk 0:02:36.4]} 10... Bg4 {[%clk 0:02:41.5]} 11. Be2
{[%clk 0:02:35.3]} 11... Bxe2 {[%clk 0:02:36.7]} 12. Qxe2 {[%clk 0:02:36.2]}
12... Na6 {[%clk 0:02:35.6]} 13. Nc4 {[%clk 0:02:36.2]} 13... Nb4 {[%clk
0:02:34.3]} 14. Bg5 {[%clk 0:02:22.7]} 14... h6 {[%clk 0:02:31.6]} 15. Bh4
{[%clk 0:02:22.9]} 15... Re8 {[%clk 0:02:20.5]} 16. Qd2 {[%clk 0:02:22.9]} 16...
g5 {[%clk 0:01:40.1]} 17. Bg3 {[%clk 0:02:22.9]} 17... Ne4 {[%clk 0:01:26.3]}
18. Nxe4 {[%clk 0:02:23.1]} 18... Rxe4 {[%clk 0:01:25.5]} 19. Nxd6 {[%clk
0:02:17.4]} 19... Rd4 {[%clk 0:01:25.4]} 20. Qe2 {[%clk 0:02:10.5]} 20... Rxd5
{[%clk 0:01:23.7]} 21. Rad1 {[%clk 0:02:10.7]} 21... Qb6 {[%clk 0:00:57.4]} 22.
c3 {[%clk 0:02:06.8]} 22... Rxd1 {[%clk 0:00:54.4]} 23. Rxd1 {[%clk 0:02:07.7]}
23... Nc6 {[%clk 0:00:52.9]} 24. Nf5 {[%clk 0:01:56.4]} 24... Bf8 {[%clk
0:00:44.2]} 25. h4 {[%clk 0:01:56.5]} 25... Qb3 {[%clk 0:00:23.2]} 26. hxg5
{[%clk 0:01:54.3]} 26... hxg5 {[%clk 0:00:23.5]} 27. Qh5 {[%clk 0:01:44.3]} 1-0

[Event "*** SCC Grand Prix: Titled Tuesday Blitz"]
[Site "Chess.com"]
[Date "2020.06.23"]
[Round "1"]
[White "Nathan_Filgueiras"]
[Black "Bulldog167"]
[Result "0-1"]
[WhiteElo "2397"]
[BlackElo "2777"]
[TimeControl "180+1"]
[EndTime "10:05:27 PDT"]
[Termination "Bulldog167 won by checkmate"]

1. e4 {[%clk 0:03:00.9]} 1... c5 {[%clk 0:02:59.8]} 2. Nf3 {[%clk 0:03:01.2]}
2... g6 {[%clk 0:02:59.3]} 3. d4 {[%clk 0:03:01.4]} 3... cxd4 {[%clk 0:03:00.2]}
4. Nxd4 {[%clk 0:03:02.3]} 4... Bg7 {[%clk 0:03:00.2]} 5. c4 {[%clk 0:03:02.7]}
5... Nc6 {[%clk 0:03:00.2]} 6. Be3 {[%clk 0:03:02.5]} 6... Nf6 {[%clk
0:02:58.5]} 7. Nc3 {[%clk 0:03:02.4]} 7... d6 {[%clk 0:02:57.6]} 8. Be2 {[%clk
0:03:01.5]} 8... O-O {[%clk 0:02:56.6]} 9. O-O {[%clk 0:03:01.2]} 9... Nxd4
{[%clk 0:02:55.9]} 10. Bxd4 {[%clk 0:03:01.1]} 10... a5 {[%clk 0:02:55.7]} 11.
Qc2 {[%clk 0:02:56.1]} 11... Bd7 {[%clk 0:02:55.1]} 12. h3 {[%clk 0:02:50.4]}
12... a4 {[%clk 0:02:55.2]} 13. Rad1 {[%clk 0:02:46]} 13... Qa5 {[%clk 0:02:54]}
14. f4 {[%clk 0:02:42.4]} 14... Rfc8 {[%clk 0:02:51.1]} 15. e5 {[%clk
0:01:45.1]} 15... Ne8 {[%clk 0:02:51]} 16. exd6 {[%clk 0:01:27.3]} 16... Bxd4+
{[%clk 0:02:49.3]} 17. Rxd4 {[%clk 0:01:28.2]} 17... Nxd6 {[%clk 0:02:48.7]} 18.
Kh2 {[%clk 0:01:19.9]} 18... Be6 {[%clk 0:02:40.8]} 19. b3 {[%clk 0:01:13.3]}
19... axb3 {[%clk 0:02:40.1]} 20. axb3 {[%clk 0:01:14.2]} 20... b5 {[%clk
0:02:40.5]} 21. Nd5 {[%clk 0:01:08.1]} 21... Bxd5 {[%clk 0:02:37.3]} 22. Rxd5
{[%clk 0:01:08.4]} 22... Qa2 {[%clk 0:02:28]} 23. Rc1 {[%clk 0:00:55.4]} 23...
bxc4 {[%clk 0:02:21.9]} 24. Bxc4 {[%clk 0:00:53.3]} 24... Qxc2 {[%clk
0:02:06.8]} 25. Rxc2 {[%clk 0:00:53.3]} 25... Nf5 {[%clk 0:02:07.1]} 26. Rd7
{[%clk 0:00:45.4]} 26... e6 {[%clk 0:02:03.1]} 27. Rcd2 {[%clk 0:00:23.3]} 27...
h5 {[%clk 0:02:00.2]} 28. Rb7 {[%clk 0:00:20.9]} 28... h4 {[%clk 0:01:59.4]} 29.
Rdd7 {[%clk 0:00:20.5]} 29... Rf8 {[%clk 0:01:58.7]} 30. b4 {[%clk 0:00:15.6]}
30... Ra1 {[%clk 0:01:58.7]} 31. Rxf7 {[%clk 0:00:14.6]} 31... Rxf7 {[%clk
0:01:56.9]} 32. Bxe6 {[%clk 0:00:14.9]} 32... Ng3 {[%clk 0:01:49.7]} 33. Bxf7+
{[%clk 0:00:14]} 33... Kf8 {[%clk 0:01:49.5]} 34. Bxg6 {[%clk 0:00:12]} 34...
Rh1# {[%clk 0:01:49.4]} 0-1

[Event "*** SCC Grand Prix: Titled Tuesday Blitz"]
[Site "Chess.com"]
[Date "2020.06.23"]
[Round "1"]
[White "Eltaj_Safarli"]
[Black "Bossche-CM"]
[Result "1-0"]
[WhiteElo "2955"]
[BlackElo "2456"]
[TimeControl "180+1"]
[EndTime "10:05:28 PDT"]
[Termination "Eltaj_Safarli won by checkmate"]

1. e4 {[%clk 0:03:00.7]} 1... e5 {[%clk 0:02:59.1]} 2. Nf3 {[%clk 0:02:59.9]}
2... Nf6 {[%clk 0:02:59.3]} 3. Nc3 {[%clk 0:02:59]} 3... Nc6 {[%clk 0:02:58.2]}
4. a3 {[%clk 0:02:59.6]} 4... d5 {[%clk 0:02:54.7]} 5. Bb5 {[%clk 0:02:58.3]}
5... Nxe4 {[%clk 0:02:52.6]} 6. Qe2 {[%clk 0:02:57.5]} 6... Nxc3 {[%clk
0:02:42.4]} 7. Qxe5+ {[%clk 0:02:58.4]} 7... Qe7 {[%clk 0:02:37.4]} 8. dxc3
{[%clk 0:02:57.5]} 8... Bd7 {[%clk 0:02:31.9]} 9. Qxe7+ {[%clk 0:02:46.7]} 9...
Bxe7 {[%clk 0:02:32.8]} 10. Bf4 {[%clk 0:02:46.8]} 10... O-O-O {[%clk
0:02:31.7]} 11. O-O-O {[%clk 0:02:47.2]} 11... Rhe8 {[%clk 0:02:26.9]} 12. Rxd5
{[%clk 0:02:42.3]} 12... a6 {[%clk 0:02:09.2]} 13. Bd3 {[%clk 0:02:35.2]} 13...
Be6 {[%clk 0:01:58.7]} 14. Rxd8+ {[%clk 0:02:33.6]} 14... Bxd8 {[%clk
0:01:56.6]} 15. Ng5 {[%clk 0:02:25.5]} 15... Bxg5 {[%clk 0:01:53.6]} 16. Bxg5
{[%clk 0:02:26.4]} 16... Bd5 {[%clk 0:01:52.6]} 17. f3 {[%clk 0:02:24.1]} 17...
Ne5 {[%clk 0:01:49.1]} 18. Bf5+ {[%clk 0:02:11.8]} 18... Be6 {[%clk 0:01:49]}
19. Be4 {[%clk 0:02:09.2]} 19... f5 {[%clk 0:01:43.6]} 20. Bd3 {[%clk
0:02:08.3]} 20... Nxd3+ {[%clk 0:01:43.2]} 21. cxd3 {[%clk 0:02:09.2]} 21... Bb3
{[%clk 0:01:42.5]} 22. Kd2 {[%clk 0:02:07.8]} 22... Kd7 {[%clk 0:01:41.2]} 23.
c4 {[%clk 0:02:05.6]} 23... Ba4 {[%clk 0:01:39.6]} 24. Be3 {[%clk 0:02:01.9]}
24... Bc6 {[%clk 0:01:32.3]} 25. h4 {[%clk 0:01:53.4]} 25... h5 {[%clk
0:01:31.5]} 26. Rh3 {[%clk 0:01:51.4]} 26... Ke6 {[%clk 0:01:27.5]} 27. Rg3
{[%clk 0:01:51]} 27... Kf7 {[%clk 0:01:27.2]} 28. b3 {[%clk 0:01:48]} 28... Re7
{[%clk 0:01:20.2]} 29. a4 {[%clk 0:01:41.9]} 29... b5 {[%clk 0:01:19.3]} 30.
cxb5 {[%clk 0:01:40.2]} 30... axb5 {[%clk 0:01:20.2]} 31. a5 {[%clk 0:01:40.6]}
31... Bb7 {[%clk 0:01:17.2]} 32. b4 {[%clk 0:01:38.3]} 32... Rd7 {[%clk
0:01:14.5]} 33. Kc3 {[%clk 0:01:36.5]} 33... Kf6 {[%clk 0:01:11.4]} 34. Bd4+
{[%clk 0:01:34.8]} 34... Ke6 {[%clk 0:01:09.2]} 35. Rg6+ {[%clk 0:01:34.4]}
35... Kd5 {[%clk 0:01:08.3]} 36. Bxg7 {[%clk 0:01:34.3]} 36... c5 {[%clk
0:01:06.1]} 37. bxc5 {[%clk 0:01:32.7]} 37... Kxc5 {[%clk 0:01:07]} 38. Bf8+
{[%clk 0:01:32.6]} 38... Kd5 {[%clk 0:01:06.3]} 39. Kb4 {[%clk 0:01:31.2]} 39...
Ke5 {[%clk 0:01:01.8]} 40. Bg7+ {[%clk 0:01:26.9]} 40... Kf4 {[%clk 0:01:00.4]}
41. d4 {[%clk 0:01:25.6]} 41... Rd5 {[%clk 0:00:55.5]} 42. Bh6# {[%clk
0:01:23.9]} 1-0

[Event "*** SCC Grand Prix: Titled Tuesday Blitz"]
[Site "Chess.com"]
[Date "2020.06.23"]
[Round "1"]
[White "Mikhal867"]
[Black "Tooweak2slow03"]
[Result "0-1"]
[WhiteElo "2321"]
[BlackElo "2650"]
[TimeControl "180+1"]
[EndTime "10:05:33 PDT"]
[Termination "Tooweak2slow03 won by checkmate"]

1. c4 {[%clk 0:02:52.5]} 1... e6 {[%clk 0:03:00]} 2. g3 {[%clk 0:02:51.7]} 2...
Nf6 {[%clk 0:02:58.4]} 3. Bg2 {[%clk 0:02:51.1]} 3... d5 {[%clk 0:02:58.9]} 4.
Nf3 {[%clk 0:02:51.3]} 4... d4 {[%clk 0:02:59.1]} 5. O-O {[%clk 0:02:49.1]} 5...
c5 {[%clk 0:02:59.5]} 6. e3 {[%clk 0:02:48.8]} 6... Nc6 {[%clk 0:02:59.6]} 7.
exd4 {[%clk 0:02:48.6]} 7... cxd4 {[%clk 0:03:00.5]} 8. Re1 {[%clk 0:02:47.6]}
8... Bd6 {[%clk 0:03:00.1]} 9. d3 {[%clk 0:02:44.9]} 9... O-O {[%clk 0:02:59.9]}
10. Na3 {[%clk 0:02:33.8]} 10... a6 {[%clk 0:02:55.8]} 11. Nc2 {[%clk
0:02:32.5]} 11... e5 {[%clk 0:02:52.5]} 12. b4 {[%clk 0:02:32.1]} 12... Re8
{[%clk 0:02:37.3]} 13. c5 {[%clk 0:02:30.7]} 13... Bc7 {[%clk 0:02:35.4]} 14.
Bg5 {[%clk 0:02:19.5]} 14... h6 {[%clk 0:02:33.7]} 15. Bxf6 {[%clk 0:02:19.3]}
15... Qxf6 {[%clk 0:02:34.1]} 16. Nfxd4 {[%clk 0:02:15.5]} 16... Ne7 {[%clk
0:02:00.1]} 17. Nb3 {[%clk 0:02:04.9]} 17... Rd8 {[%clk 0:01:57.9]} 18. d4
{[%clk 0:01:43.6]} 18... exd4 {[%clk 0:01:55.8]} 19. Ncxd4 {[%clk 0:01:43.6]}
19... Nf5 {[%clk 0:01:55.1]} 20. Nxf5 {[%clk 0:01:18.7]} 20... Rxd1 {[%clk
0:01:52]} 21. Raxd1 {[%clk 0:01:14.1]} 21... Bxf5 {[%clk 0:01:48.6]} 22. Bxb7
{[%clk 0:01:13.3]} 22... Rb8 {[%clk 0:01:48.2]} 23. c6 {[%clk 0:01:07.9]} 23...
Bh3 {[%clk 0:01:45.9]} 24. Re3 {[%clk 0:01:04.4]} 24... Bb6 {[%clk 0:01:43.1]}
25. Nc5 {[%clk 0:01:03]} 25... a5 {[%clk 0:01:39.1]} 26. a3 {[%clk 0:00:46.7]}
26... axb4 {[%clk 0:01:37.8]} 27. axb4 {[%clk 0:00:46.2]} 27... Bxc5 {[%clk
0:01:38.4]} 28. bxc5 {[%clk 0:00:41.4]} 28... Rd8 {[%clk 0:01:38.9]} 29. Rde1
{[%clk 0:00:30.4]} 29... Rd2 {[%clk 0:01:32.6]} 30. c7 {[%clk 0:00:19.6]} 30...
Qxf2+ {[%clk 0:01:29.4]} 31. Kh1 {[%clk 0:00:19.6]} 31... Qxh2# {[%clk
0:01:29.9]} 0-1

[Event "*** SCC Grand Prix: Titled Tuesday Blitz"]
[Site "Chess.com"]
[Date "2020.06.23"]
[Round "1"]
[White "Violord"]
[Black "Camels1981"]
[Result "1-0"]
[WhiteElo "2625"]
[BlackElo "2306"]
[TimeControl "180+1"]
[EndTime "10:05:36 PDT"]
[Termination "Violord won on time"]

1. e4 {[%clk 0:02:57.9]} 1... c5 {[%clk 0:02:53]} 2. Nf3 {[%clk 0:02:57.3]} 2...
e6 {[%clk 0:02:52.6]} 3. c3 {[%clk 0:02:56.4]} 3... Nf6 {[%clk 0:02:49.7]} 4. e5
{[%clk 0:02:55.9]} 4... Nd5 {[%clk 0:02:49.2]} 5. d4 {[%clk 0:02:55.9]} 5...
cxd4 {[%clk 0:02:46.4]} 6. cxd4 {[%clk 0:02:55.5]} 6... Nc6 {[%clk 0:02:46]} 7.
Bd3 {[%clk 0:02:52.4]} 7... d6 {[%clk 0:02:38.4]} 8. a3 {[%clk 0:02:51.5]} 8...
dxe5 {[%clk 0:02:37.3]} 9. dxe5 {[%clk 0:02:50.6]} 9... Be7 {[%clk 0:02:25.3]}
10. O-O {[%clk 0:02:49]} 10... O-O {[%clk 0:02:24.1]} 11. Qe2 {[%clk 0:02:49.5]}
11... Re8 {[%clk 0:01:57.6]} 12. h4 {[%clk 0:02:46.9]} 12... b6 {[%clk
0:01:06.8]} 13. Rd1 {[%clk 0:02:30.4]} 13... a5 {[%clk 0:00:52.4]} 14. Qe4
{[%clk 0:02:27.5]} 14... g6 {[%clk 0:00:46.7]} 15. h5 {[%clk 0:02:27.4]} 15...
Ba6 {[%clk 0:00:45.3]} 16. Bxa6 {[%clk 0:02:23.5]} 16... Rxa6 {[%clk 0:00:44.6]}
17. Nc3 {[%clk 0:02:20.6]} 17... Ra7 {[%clk 0:00:13.7]} 18. Nxd5 {[%clk
0:02:08.2]} 18... exd5 {[%clk 0:00:14.6]} 19. Rxd5 {[%clk 0:01:55.3]} 19... Rd7
{[%clk 0:00:14.2]} 20. Rxd7 {[%clk 0:01:55.3]} 20... Qxd7 {[%clk 0:00:15.1]} 21.
Be3 {[%clk 0:01:55.4]} 21... Bc5 {[%clk 0:00:10.2]} 22. h6 {[%clk 0:01:51.7]}
22... Bxe3 {[%clk 0:00:06.2]} 23. Qxe3 {[%clk 0:01:48.8]} 23... Qc7 {[%clk
0:00:04.8]} 24. Rc1 {[%clk 0:01:45.1]} 24... Qd7 {[%clk 0:00:03.1]} 25. Qxb6
{[%clk 0:01:43]} 25... Nxe5 {[%clk 0:00:01.9]} 26. Nxe5 {[%clk 0:01:40.8]} 26...
Rxe5 {[%clk 0:00:01.8]} 27. Qf6 {[%clk 0:01:39.5]} 1-0

[Event "*** SCC Grand Prix: Titled Tuesday Blitz"]
[Site "Chess.com"]
[Date "2020.06.23"]
[Round "1"]
[White "Falia-p"]
[Black "Sammed_Shete"]
[Result "0-1"]
[WhiteElo "2228"]
[BlackElo "2566"]
[TimeControl "180+1"]
[EndTime "10:05:36 PDT"]
[Termination "Sammed_Shete won by resignation"]

1. e4 {[%clk 0:03:00.9]} 1... c5 {[%clk 0:02:59.1]} 2. Nf3 {[%clk 0:03:00.1]}
2... Nc6 {[%clk 0:02:58.9]} 3. Bb5 {[%clk 0:02:59.5]} 3... g6 {[%clk 0:02:58.2]}
4. Bxc6 {[%clk 0:02:59.5]} 4... bxc6 {[%clk 0:02:56.2]} 5. O-O {[%clk
0:02:55.5]} 5... Bg7 {[%clk 0:02:55.3]} 6. d3 {[%clk 0:02:51.2]} 6... Nf6 {[%clk
0:02:55.1]} 7. h3 {[%clk 0:02:46.6]} 7... O-O {[%clk 0:02:53.1]} 8. Nbd2 {[%clk
0:02:44.6]} 8... d6 {[%clk 0:02:52.8]} 9. Nc4 {[%clk 0:02:43.5]} 9... e5 {[%clk
0:02:49.3]} 10. Bg5 {[%clk 0:02:40.9]} 10... h6 {[%clk 0:02:45.8]} 11. Be3
{[%clk 0:02:39.2]} 11... Be6 {[%clk 0:02:43.6]} 12. b3 {[%clk 0:02:36.6]} 12...
Nh5 {[%clk 0:02:31.5]} 13. Qc1 {[%clk 0:02:29.1]} 13... Kh7 {[%clk 0:02:30.1]}
14. Nh2 {[%clk 0:02:17.2]} 14... f5 {[%clk 0:02:24]} 15. exf5 {[%clk 0:02:08.9]}
15... gxf5 {[%clk 0:02:24.9]} 16. Rb1 {[%clk 0:01:55.2]} 16... d5 {[%clk
0:02:21.2]} 17. Na5 {[%clk 0:01:51.9]} 17... Qxa5 {[%clk 0:02:18.7]} 18. c4
{[%clk 0:01:49.1]} 18... d4 {[%clk 0:02:16.2]} 19. Bd2 {[%clk 0:01:48.9]} 19...
Qd8 {[%clk 0:02:11.9]} 20. Re1 {[%clk 0:01:45.7]} 20... Qf6 {[%clk 0:02:03.4]}
21. b4 {[%clk 0:01:42.9]} 21... cxb4 {[%clk 0:02:00.7]} 22. Bxb4 {[%clk
0:01:42.1]} 22... Rf7 {[%clk 0:02:00.6]} 23. Bd6 {[%clk 0:01:41.3]} 23... e4
{[%clk 0:01:52.6]} 24. Qc2 {[%clk 0:01:33.2]} 24... Qg6 {[%clk 0:01:35.4]} 25.
f4 {[%clk 0:01:22.1]} 25... Rd8 {[%clk 0:01:28.8]} 26. c5 {[%clk 0:01:20.5]}
26... Bd5 {[%clk 0:01:25.8]} 27. Rb2 {[%clk 0:01:14.4]} 27... Rxd6 {[%clk
0:01:20]} 28. cxd6 {[%clk 0:01:13.4]} 28... Qxd6 {[%clk 0:01:20.9]} 29. dxe4
{[%clk 0:01:13.2]} 29... fxe4 {[%clk 0:01:20.4]} 30. Rxe4 {[%clk 0:01:13.4]}
30... Qg6 {[%clk 0:01:11.1]} 31. Re1 {[%clk 0:01:03]} 31... d3 {[%clk
0:01:10.7]} 32. Qf2 {[%clk 0:00:53.1]} 32... Rxf4 {[%clk 0:01:09]} 0-1

[Event "*** SCC Grand Prix: Titled Tuesday Blitz"]
[Site "Chess.com"]
[Date "2020.06.23"]
[Round "1"]
[White "Djager97"]
[Black "XxPetroffsxX"]
[Result "1-0"]
[WhiteElo "2475"]
[BlackElo "1903"]
[TimeControl "180+1"]
[EndTime "10:05:41 PDT"]
[Termination "Djager97 won by checkmate"]

1. e4 {[%clk 0:02:56.7]} 1... c6 {[%clk 0:02:52.5]} 2. d4 {[%clk 0:02:56.4]}
2... d5 {[%clk 0:02:52.4]} 3. Nc3 {[%clk 0:02:57]} 3... dxe4 {[%clk 0:02:52.2]}
4. Nxe4 {[%clk 0:02:57.9]} 4... Bf5 {[%clk 0:02:52.6]} 5. Ng3 {[%clk 0:02:57.8]}
5... Bg6 {[%clk 0:02:53.1]} 6. Nf3 {[%clk 0:02:58.4]} 6... Nd7 {[%clk
0:02:52.2]} 7. h4 {[%clk 0:02:58.8]} 7... h6 {[%clk 0:02:52.5]} 8. h5 {[%clk
0:02:59.3]} 8... Bh7 {[%clk 0:02:52.8]} 9. Bd3 {[%clk 0:03:00]} 9... Bxd3 {[%clk
0:02:53.2]} 10. Qxd3 {[%clk 0:03:00.9]} 10... Ngf6 {[%clk 0:02:52.4]} 11. Bd2
{[%clk 0:03:00.6]} 11... e6 {[%clk 0:02:51.4]} 12. O-O-O {[%clk 0:03:00.5]}
12... Bd6 {[%clk 0:02:51.9]} 13. Ne4 {[%clk 0:03:00.2]} 13... Nxe4 {[%clk
0:02:51.7]} 14. Qxe4 {[%clk 0:03:01.1]} 14... Nf6 {[%clk 0:02:52.2]} 15. Qe2
{[%clk 0:03:01.5]} 15... Qc7 {[%clk 0:02:52.5]} 16. c4 {[%clk 0:02:51.9]} 16...
Bf4 {[%clk 0:02:51.2]} 17. Kb1 {[%clk 0:02:46.8]} 17... Bxd2 {[%clk 0:02:50.2]}
18. Rxd2 {[%clk 0:02:47.7]} 18... Rd8 {[%clk 0:02:49.5]} 19. Ne5 {[%clk
0:02:42.3]} 19... O-O {[%clk 0:02:47.1]} 20. f4 {[%clk 0:02:41]} 20... c5 {[%clk
0:02:44.1]} 21. g4 {[%clk 0:02:28.6]} 21... Rxd4 {[%clk 0:02:37.9]} 22. Rxd4
{[%clk 0:02:15.7]} 22... cxd4 {[%clk 0:02:37.1]} 23. g5 {[%clk 0:02:16.6]} 23...
hxg5 {[%clk 0:02:30]} 24. fxg5 {[%clk 0:02:17.5]} 24... Nd7 {[%clk 0:02:28.3]}
25. Nd3 {[%clk 0:02:14.5]} 25... Qg3 {[%clk 0:02:21.3]} 26. h6 {[%clk
0:01:10.5]} 26... Qe3 {[%clk 0:02:13.6]} 27. Qf1 {[%clk 0:01:10.1]} 27... Qe4
{[%clk 0:01:59.9]} 28. hxg7 {[%clk 0:01:05.6]} 28... Kxg7 {[%clk 0:01:57.8]} 29.
Qh3 {[%clk 0:01:05.6]} 29... Qg6 {[%clk 0:01:48.7]} 30. Ka1 {[%clk 0:01:05.5]}
30... Rg8 {[%clk 0:01:23.7]} 31. Nf4 {[%clk 0:00:50.6]} 31... Qf5 {[%clk
0:01:12.8]} 32. Qh6# {[%clk 0:00:49.3]} 1-0

[Event "*** SCC Grand Prix: Titled Tuesday Blitz"]
[Site "Chess.com"]
[Date "2020.06.23"]
[Round "1"]
[White "Micki-taryan"]
[Black "2nd_life"]
[Result "1-0"]
[WhiteElo "3020"]
[BlackElo "2464"]
[TimeControl "180+1"]
[EndTime "10:05:44 PDT"]
[Termination "Micki-taryan won by resignation"]

1. d4 {[%clk 0:02:18.4]} 1... Nf6 {[%clk 0:02:58.3]} 2. Nf3 {[%clk 0:02:19.3]}
2... e6 {[%clk 0:02:58]} 3. c4 {[%clk 0:02:18.4]} 3... b6 {[%clk 0:02:57.8]} 4.
Nc3 {[%clk 0:02:18.3]} 4... Bb4 {[%clk 0:02:57.3]} 5. Bg5 {[%clk 0:02:18.8]}
5... h6 {[%clk 0:02:56.7]} 6. Bh4 {[%clk 0:02:19.3]} 6... g5 {[%clk 0:02:53.7]}
7. Bg3 {[%clk 0:02:19.2]} 7... Ne4 {[%clk 0:02:53.2]} 8. Nd2 {[%clk 0:02:15.6]}
8... Nxc3 {[%clk 0:02:26.2]} 9. bxc3 {[%clk 0:02:16.5]} 9... Bxc3 {[%clk
0:02:26.6]} 10. e3 {[%clk 0:02:15.3]} 10... Bxa1 {[%clk 0:02:22.3]} 11. Qxa1
{[%clk 0:02:16.2]} 11... d6 {[%clk 0:02:21.7]} 12. h4 {[%clk 0:01:55.6]} 12...
Bb7 {[%clk 0:02:08.3]} 13. hxg5 {[%clk 0:01:50.4]} 13... Qxg5 {[%clk 0:02:06.9]}
14. c5 {[%clk 0:01:43.6]} 14... Ba6 {[%clk 0:01:30.2]} 15. cxd6 {[%clk
0:01:34.8]} 15... cxd6 {[%clk 0:01:18.4]} 16. Qc3 {[%clk 0:01:26.1]} 16... Kd7
{[%clk 0:00:51.2]} 17. Bxa6 {[%clk 0:01:19]} 17... Nxa6 {[%clk 0:00:50.2]} 18.
Qa3 {[%clk 0:01:19.5]} 18... Qd5 {[%clk 0:00:28.1]} 19. Qxa6 {[%clk 0:01:17.6]}
19... Qxg2 {[%clk 0:00:28.2]} 20. Rf1 {[%clk 0:01:13.1]} 20... Qc6 {[%clk
0:00:27.5]} 21. Ke2 {[%clk 0:01:08.9]} 21... h5 {[%clk 0:00:26]} 22. Nc4 {[%clk
0:01:03.9]} 22... h4 {[%clk 0:00:22.2]} 23. Bxd6 {[%clk 0:01:01]} 23... b5
{[%clk 0:00:22.3]} 24. Ne5+ {[%clk 0:01:00.4]} 1-0